[Event "44th Indian Team Championship 2025"]
[Site "Gujarat"]
[Date "2025.03.06"]
[Round "2.22"]
[White "Mukund Hemant Agarwal"]
[Black "Mummana Venkata Ruthvik"]
[Result "1/2-1/2"]
[Annotator "TA"]
[ECO "C07"]
[WhiteElo "2130"]
[BlackElo "2201"]
[PlyCount "73"]
[EventDate "2025.03.03"]
[EventCountry "IND"]
[SourceTitle "playchess.com"]
[Source "ChessBase"]
[SourceQuality "1"]
[TimeControl "5400+30"]

{[%evp 15,73,11,7,11,14,2,8,3,34,16,33,25,75,78,57,62,162,164,163,163,162,151,167,163,224,158,166,166,146,159,172,177,181,167,152,155,166,128,102,102,165,119,118,91,81,85,89,82,67,0,74,0,53,0,89,93,98,83,125,102]} 1. e4 {[%emt 0:00:38]} e6 {[%emt 0:02:36]} 2. d4 {[%emt 0:00:25]} d5 {[%emt 0:01:10]} 3. Nd2 {[%emt 0:00:26]} c5 {[%emt 0:00:52]} 4. Ngf3 {[%emt 0:00:22]} cxd4 {[%emt 0:00:50]} 5. Nxd4 {[%emt 0:00:04]} Nc6 {[%emt 0:01:23]} 6. Bb5 {[%emt 0:00:12]} Bd7 {[%emt 0:00:48]} 7. Nxc6 {[%emt 0:00:56]} bxc6 {[%emt 0:00:58]} 8. Bd3 {[%emt 0:00:04]} Qc7 {[%emt 0:01:42]} 9. Qe2 {[%emt 0:00:58] C07: French Tarrasch: 3...c5, 4 Ngf3 and 4 exd5 Qxd5.} Ne7 {[%emt 0:01:39]} 10. b3 {[%emt 0:00:46]} Ng6 {[%emt 0:05:36][%cal Of7f5]} 11. g3 {[%emt 0:00:23] The position is equal.} Bd6 {[%emt 0:19:35]} 12. Bb2 {[%emt 0:04:49]} O-O {[%emt 0:07:13]} 13. f4 {[%emt 0:01:58]} f5 {[%emt 0:03:41]} (13... Rfb8 $11) 14. exf5 $16 {[%emt 0:17:02]} exf5 {[%emt 0:01:17]} 15. O-O-O {[%emt 0:15:20]} Qa5 $146 {[%emt 0:08:09] [#]} ({Better is} 15... Rae8 $14 16. Qh5 Ne7) (15... a5 16. a4 Rae8 17. Qg2 Bc5 18. h4 Nh8 19. h5 Nf7 20. Nf3 Qd6 21. Kb1 Be3 {1-0 Demchenko,A (2655)-Durarbayli,V (2617) FIDE Chess.com Grand Swiss 2019 (5)}) 16. Nc4 $1 $18 {[%emt 0:05:33][%mdl 512]} Qc7 {[%emt 0:03:10]} 17. Nxd6 {[%emt 0:02:44]} Qxd6 {[%emt 0:00:01]} 18. h4 {[%emt 0:01:24][%cal Bh2h4,Bh4h5][%mdl 32]} Rfe8 {[%emt 0:20:00]} 19. Qd2 {[%emt 0:10:06]} Nf8 {[%emt 0:03:07]} (19... Nh8 $142 20. Rhe1 Qc5) 20. h5 {[%emt 0:07:54][%cal Oh5h6] [#]} h6 {[%emt 0:02:33]} 21. Qc3 {[%emt 0:07:55][%csl Gb2][%cal Rc3g7]} Re7 {[%emt 0:03:16][%cal Be8e7,Be7f7,Bf7f6][%mdl 32]} 22. Qa5 {[%emt 0:01:03]} Rf7 {[%emt 0:02:19]} 23. Rhe1 {[%emt 0:02:03]} Nh7 {[%emt 0:03:30]} 24. Be5 {[%emt 0:05:14] This pair of bishops is nice.} Qf8 {[%emt 0:00:38]} 25. c4 {[%emt 0:00:47] White has more active pieces.} Nf6 {[%emt 0:02:57]} 26. Bxf6 {[%emt 0:01:01]} Rxf6 {[%emt 0:00:11]} 27. cxd5 {[%emt 0:00:36] Qc7 would now be deadly.} Kh8 {[%emt 0:00:20]} (27... Be8 $16) 28. Kb1 {[%emt 0:03:01]} (28. Bc2 $18) 28... cxd5 $16 {[%emt 0:00:50]} 29. Qxd5 {[%emt 0:02:45]} Bc6 {[%emt 0:00:44]} 30. Qa5 {[%emt 0:00:01]} Bf3 {[%emt 0:01:38]} 31. Be2 {[%emt 0:03:24]} Be4+ {[%emt 0:00:38]} 32. Bd3 {[%emt 0:00:02]} (32. Kb2 {seems wilder.} Rc8 33. Bc4 Rd6 34. Qe5) 32... Bf3 {[%emt 0:00:14]} 33. Be2 {[%emt 0:00:24]} Be4+ {[%emt 0:00:03]} 34. Bd3 {[%emt 0:00:02]} Bf3 {[%emt 0:00:03]} 35. Rc1 {[%emt 0:04:55] White is better.} Rd8 {[%emt 0:00:02]} 36. Bc2 Bxh5 {[%emt 0:00:04]} 37. Re5 {White really could win this.   Weighted Error Value: White=0.17 (very precise) /Black=0.14 (very precise)   Mistake:       	White=1     	Black=4      Inaccurate:     	---       	Black=2      OK:         	White=12    	Black=14     Best:        	---       	Black=1      Brilliant:      	White=1     	---} 1/2-1/2

[Event "44th Indian Team Championship 2025"]
[Site "Gujarat"]
[Date "2025.03.06"]
[Round "2.23"]
[White "Kolla Bhaavan"]
[Black "Aditya P Melani"]
[Result "1-0"]
[Annotator "RC"]
[ECO "B45"]
[WhiteElo "2052"]
[BlackElo "1942"]
[PlyCount "73"]
[EventDate "2025.03.03"]
[EventCountry "IND"]
[SourceTitle "playchess.com"]
[Source "ChessBase"]
[SourceQuality "1"]
[TimeControl "5400+30"]

1. e4 {[%emt 0:00:27]} c5 {[%emt 0:03:00]} 2. Nf3 {[%emt 0:01:45]} Nc6 {[%emt 0:02:45]} 3. d4 {[%emt 0:00:06]} cxd4 {[%emt 0:00:04]} 4. Nxd4 {[%emt 0:00:03]} Nf6 {[%emt 0:00:05]} 5. Nc3 {[%emt 0:00:05]} e6 {[%emt 0:00:03]} 6. Be2 {[%emt 0:00:04]} Bb4 {[%emt 0:01:03]} 7. O-O {[%emt 0:00:08]} d6 {[%emt 0:02:27]} 8. Nxc6 {[%emt 0:11:22]} bxc6 {[%emt 0:00:02]} 9. Qd3 {[%emt 0:00:12]} O-O {[%emt 0:16:01]} 10. Bg5 {[%emt 0:02:23]} h6 {[%emt 0:02:33]} 11. Bh4 {[%emt 0:00:51]} e5 {[%emt 0:09:20]} 12. Rad1 {[%emt 0:03:04]} a5 {[%emt 0:03:59]} 13. Na4 {[%emt 0:16:50]} d5 {[%emt 0:13:36]} 14. c4 {[%emt 0:42:14]} Bd7 {[%emt 0:12:28]} 15. Bxf6 {[%emt 0:05:13]} Qxf6 {[%emt 0:04:03]} 16. c5 {[%emt 0:02:19]} Qe7 {[%emt 0:16:14]} 17. Qc2 {[%emt 0:01:48]} f5 {[%emt 0:01:18]} 18. a3 {[%emt 0:01:18]} fxe4 {[%emt 0:00:22]} 19. axb4 {[%emt 0:00:26]} axb4 {[%emt 0:00:02]} 20. Nb6 {[%emt 0:00:08]} Rad8 {[%emt 0:00:34]} 21. Nxd7 {[%emt 0:04:09]} Rxd7 {[%emt 0:00:01]} 22. Rc1 {[%emt 0:05:06]} Ra7 {[%emt 0:01:43]} 23. Qd2 {[%emt 0:00:56]} Rb8 {[%emt 0:03:12]} 24. Qe3 {[%emt 0:00:36]} Ra2 {[%emt 0:00:49]} 25. Qb3 {[%emt 0:00:38]} Ra5 {[%emt 0:00:01]} 26. Qc2 {[%emt 0:00:16]} Qg5 {[%emt 0:02:55]} 27. Ra1 {[%emt 0:00:55]} Rba8 {[%emt 0:00:57]} 28. Rad1 {[%emt 0:00:31]} Qe7 {[%emt 0:01:04]} 29. Rc1 {[%emt 0:00:18]} Qg5 {[%emt 0:00:01]} 30. g3 {[%emt 0:00:25]} Kh8 {[%emt 0:00:30]} 31. Kg2 {[%emt 0:00:38]} Ra2 {[%emt 0:00:31]} 32. h4 {[%emt 0:00:36]} Qf6 {[%emt 0:00:53]} 33. Qb3 {[%emt 0:00:35]} Qf8 {[%emt 0:02:30]} 34. f3 {[%emt 0:00:26]} Qf5 {[%emt 0:00:57]} 35. Qxb4 {[%emt 0:00:24]} d4 {[%emt 0:00:21]} 36. fxe4 {[%emt 0:00:29]} Qg6 {[%emt 0:01:05]} 37. Rf5 {[%emt 0:00:31]} 1-0

[Event "44th Indian Team Championship 2025"]
[Site "Gujarat"]
[Date "2025.03.06"]
[Round "2.24"]
[White "Shubh Atha"]
[Black "Chukka Vineel Radha Karthik"]
[Result "1/2-1/2"]
[Annotator "NA RC"]
[ECO "D15"]
[WhiteElo "1844"]
[BlackElo "1925"]
[PlyCount "150"]
[EventDate "2025.03.03"]
[EventCountry "IND"]
[SourceTitle "playchess.com"]
[Source "ChessBase"]
[SourceQuality "1"]
[TimeControl "5400+30"]

1. c4 {[%emt 0:01:05]} c6 {[%emt 0:03:43]} 2. Nc3 {[%emt 0:02:22]} d5 {[%emt 0:01:18]} 3. e3 {[%emt 0:01:13]} Nf6 {[%emt 0:00:02]} 4. Nf3 {[%emt 0:01:44]} a6 {[%emt 0:00:01]} 5. d4 {[%emt 0:01:29]} Bf5 {[%emt 0:00:02]} 6. Bd3 {[%emt 0:01:30]} Bxd3 {[%emt 0:00:02]} 7. Qxd3 {[%emt 0:00:07]} e6 {[%emt 0:00:09]} 8. O-O {[%emt 0:01:38]} Bb4 {[%emt 0:00:23]} 9. Nd2 {[%emt 0:08:36]} Nbd7 {[%emt 0:07:25]} 10. e4 {[%emt 0:00:00]} dxe4 {[%emt 0:07:01]} 11. Ndxe4 {[%emt 0:00:00]} Be7 {[%emt 0:05:25]} 12. Qg3 {[%emt 0:00:00]} O-O {[%emt 0:12:23]} 13. Bh6 {[%emt 0:04:59]} Ne8 {[%emt 0:00:55]} 14. Bf4 {[%emt 0:01:32]} Ndf6 {[%emt 0:05:26]} 15. Rad1 {[%emt 0:06:14]} Qa5 {[%emt 0:11:07]} 16. Nxf6+ {[%emt 0:04:12]} Nxf6 {[%emt 0:03:40]} 17. Be5 {[%emt 0:00:37]} Ne8 {[%emt 0:22:32]} 18. d5 {[%emt 0:01:02]} Bf6 {[%emt 0:04:03]} 19. Rfe1 {[%emt 0:01:15]} Rd8 {[%emt 0:02:57]} 20. Bxf6 {[%emt 0:03:38]} Nxf6 {[%emt 0:00:03]} 21. dxe6 {[%emt 0:00:25]} fxe6 {[%emt 0:00:51]} 22. Rxd8 {[%emt 0:00:33]} Rxd8 {[%emt 0:00:17]} 23. Rxe6 {[%emt 0:00:28]} Qxa2 {[%emt 0:00:37]} 24. h3 {[%emt 0:00:37]} Qa1+ {[%emt 0:01:45]} 25. Kh2 {[%emt 0:00:06]} Rf8 {[%emt 0:03:37]} 26. Re7 {[%emt 0:02:38]} Nh5 {[%emt 0:02:12]} 27. Qg4 {[%emt 0:00:06]} Qxb2 {[%emt 0:01:57]} 28. Qe6+ {[%emt 0:00:06]} Kh8 {[%emt 0:00:13]} 29. Qf7 {[%emt 0:00:09]} Rg8 {[%emt 0:00:33]} 30. Ne4 {[%emt 0:00:15]} Nf6 {[%emt 0:01:33]} 31. Nxf6 {[%emt 0:05:32]} Qxf6 {[%emt 0:00:12]} 32. Qxf6 {[%emt 0:00:05]} gxf6 {[%emt 0:00:12]} 33. Rxb7 {[%emt 0:00:01]} Rg5 {[%emt 0:01:32]} 34. Ra7 {[%emt 0:02:12]} a5 {[%emt 0:00:49]} 35. h4 {[%emt 0:01:07]} Rc5 {[%emt 0:00:37]} 36. Kh3 {[%emt 0:00:05]} Rxc4 {[%emt 0:00:30]} 37. Rxa5 {[%emt 0:00:01]} Kg7 {[%emt 0:00:31]} 38. g4 {[%emt 0:01:33]} Rc3+ {[%emt 0:01:34]} 39. Kg2 {[%emt 0:00:01]} c5 {[%emt 0:01:18]} 40. Ra7+ {[%emt 0:00:05]} Kg6 {[%emt 0:00:21]} 41. h5+ {[%emt 0:00:01]} Kg5 {[%emt 0:00:40]} 42. Rg7+ {[%emt 0:00:08]} Kh6 {[%emt 0:00:26]} 43. Rf7 {[%emt 0:00:04]} Kg5 {[%emt 0:00:21]} 44. f3 {[%emt 0:00:08]} c4 {[%emt 0:00:47]} 45. Kg3 {[%emt 0:00:27]} Kh6 {[%emt 0:00:26]} 46. Rxf6+ {[%emt 0:00:04]} Kg7 {[%emt 0:00:11]} 47. Rc6 {[%emt 0:00:05]} Rc1 {[%emt 0:00:48]} 48. h6+ {[%emt 0:00:30]} Kf7 {[%emt 0:00:20]} 49. Kf4 {[%emt 0:00:01]} c3 {[%emt 0:00:35]} 50. Kg5 {[%emt 0:00:13]} Ke7 {[%emt 0:00:25]} 51. f4 {[%emt 0:00:07]} c2 {[%emt 0:00:21]} 52. f5 {[%emt 0:00:01]} Kd7 {[%emt 0:00:37]} 53. Rc4 {[%emt 0:00:08]} Ke7 {[%emt 0:00:20]} 54. f6+ {[%emt 0:00:21]} Ke6 {[%emt 0:00:51]} 55. Rc5 {[%emt 0:00:39]} Ra1 {[%emt 0:00:32]} 56. Rc6+ {[%emt 0:00:57]} Kf7 {[%emt 0:00:12]} 57. Rc7+ {[%emt 0:00:21]} Ke6 {[%emt 0:00:19]} 58. Rxc2 {[%emt 0:00:54]} Ra5+ {[%emt 0:00:06]} 59. Kh4 {[%emt 0:00:09]} Kxf6 {[%emt 0:00:06]} 60. g5+ {[%emt 0:00:19]} Kg6 {[%emt 0:00:35]} 61. Rc6+ {[%emt 0:00:06]} Kf7 {[%emt 0:00:25]} 62. Rc7+ {[%emt 0:00:31]} Kg8 {[%emt 0:00:08]} 63. Re7 {[%emt 0:00:58]} Ra8 {[%emt 0:01:09]} 64. Kg4 {[%emt 0:00:16]} Kh8 {[%emt 0:00:39]} 65. Kf5 {[%emt 0:00:47]} Kg8 {[%emt 0:00:41]} 66. Kf6 {[%emt 0:00:00]} Ra6+ {[%emt 0:00:45]} 67. Kf5 {[%emt 0:00:12]} Ra8 {[%emt 0:00:05]} 68. Rd7 {[%emt 0:00:04]} Re8 {[%emt 0:01:05]} 69. Rg7+ {[%emt 0:02:01]} Kh8 {[%emt 0:00:07]} 70. Rf7 {[%emt 0:00:39]} Ra8 {[%emt 0:00:14]} 71. Rd7 {[%emt 0:00:11]} Kg8 {[%emt 0:00:20]} 72. Rg7+ {[%emt 0:01:19]} Kh8 {[%emt 0:00:11]} 73. Rd7 {[%emt 0:00:22]} Kg8 {[%emt 0:00:05]} 74. Ke6 {[%emt 0:00:17]} Re8+ {[%emt 0:01:57]} 75. Kd6 {[%emt 0:00:47]} Kh8 {[%emt 0:00:27]} 1/2-1/2